bitfinex/quotes_ETHUSD_20250827
["timestamp","ask_amount","ask_price","bid_price","bid_amount"]
[1756338594649,6.13802003,4506.9,4506.8,0.30910001]
[1756338595010,3.9192,4506.9,4506.8,0.30910001]
[1756338595350,0.1112,4506.9,4506.8,0.30910001]
[1756338595521,0.1112,4506.9,4506.8,6.59204709]
[1756338595731,3.807,4506.9,4506.8,7.2512518]
[1756338595935,3.807,4506.9,4506.8,6.59204709]
[1756338596123,1.707,4507.8,4506.8,6.59204709]
[1756338596327,3.9182,4507.7,4507.6,5.81004708]
[1756338596533,3.9182,4507.7,4507.6,6.11514708]
[1756338597420,1.707,4507.8,4507.6,7.19956179]
[1756338597643,3.807,4507.7,4507.6,6.72666179]
[1756338597918,3.807,4507.7,4507.6,8.94512703]
[1756338598447,3.807,4507.7,4507.6,9.41802703]
[1756338598754,3.807,4507.8,4507.6,7.19956179]
[1756338598956,3.807,4507.8,4507.7,2.69132624]
[1756338599161,3.807,4507.8,4507.7,0.4729]
[1756338599464,3.807,4507.8,4507.7,0.3051]
[1756338599965,3.807,4507.8,4507.7,2.99642624]
[1756338600187,1.8172,4508.5,4507.8,2.21836655]
[1756338600466,3.807,4508.4,4508.1,5.81004708]
[1756338600627,3.807,4508.4,4507.6,5.92124708]
[1756338600824,2.2181802,4508.2,4507.6,5.92124708]
[1756338601030,3.9172,4508.1,4507.6,5.92124708]
[1756338601470,6.13543912,4508.1,4507.6,5.92124708]
[1756338601664,6.13543912,4508.1,4507.6,0.1112]
[1756338601665,0.2864,4507.7,4507.6,0.1112]
[1756338601877,2.21856606,4507.5,4506.9,5.81004708]
[1756338602029,2.21863772,4507.3,4506.9,5.81004708]
[1756338602228,3.806,4507.2,4506.9,5.81004708]
[1756338602440,0.1112,4507.1,4506.9,5.81004708]
[1756338602661,3.806,4507.0,4506.9,5.81004708]
[1756338604251,3.806,4507.0,4506.9,6.11514708]
[1756338606366,0.1112,4507.4,4506.9,9.69907712]
[1756338606672,3.806,4507.3,4507.1,2.21871827]
[1756338606969,3.806,4507.3,4507.2,5.81004708]
[1756338607331,1.706,4507.5,4507.2,8.02871942]
[1756338607559,3.806,4507.8,4507.2,5.81004708]
[1756338607762,3.806,4507.8,4507.7,5.81004708]
[1756338607968,3.806,4507.8,4507.7,6.11514708]
[1756338609260,0.001,4508.0,4507.7,8.33357332]
[1756338609473,3.805,4507.9,4507.7,8.80647332]
[1756338609668,3.805,4507.9,4507.7,6.11514708]
[1756338610079,3.805,4507.9,4507.8,0.3051]
[1756338610575,3.805,4507.9,4507.7,5.81004708]
[1756338610875,3.805,4507.8,4507.7,5.81004708]
[1756338611043,3.805,4507.8,4507.7,8.33357332]
[1756338611574,0.021,4508.8,4507.7,11.50666617]
[1756338611748,0.021,4508.8,4508.7,8.02798129]
[1756338611941,0.001,4509.3,4509.2,8.02773536]
[1756338612139,0.001,4509.3,4509.2,6.22634708]
[1756338612358,0.001,4509.3,4509.2,9.44717007]
[1756338612973,1.8172,4509.9,4509.7,2.2174424]
[1756338613277,1.706,4510.6,4509.8,2.21739323]
[1756338613477,3.805,4510.5,4510.1,2.32840314]
[1756338613781,3.805,4510.5,4510.4,0.3051]
[1756338614682,3.804,4510.5,4510.4,0.3051]
[1756338614882,0.021,4510.8,4510.4,0.3051]
[1756338615045,3.825,4510.8,4510.6,2.32819498]
[1756338615248,3.825,4510.8,4510.7,0.3051]
[1756338615448,0.021,4510.8,4510.7,2.5220508]
[1756338615643,0.021,4510.8,4510.7,0.3051]
[1756338616178,0.021,4510.8,4510.7,2.5220508]
[1756338616392,0.021,4510.8,4510.7,0.83742297]
[1756338616549,0.021,4510.8,4510.7,3.05437377]
[1756338616892,0.021,4510.8,4510.7,0.83742297]
[1756338617105,0.312,4510.8,4510.6,0.1112]
[1756338617390,3.803,4510.7,4510.6,0.1112]
[1756338617746,0.021,4510.8,4510.6,0.1112]
[1756338617975,3.803,4510.7,4510.6,0.1112]
[1756338618146,3.803,4510.7,4510.6,0.3964]
[1756338618547,0.021,4510.8,4510.6,0.3964]
[1756338618779,0.021,4510.8,4510.6,0.6577471]
[1756338620778,0.7392,4510.7,4510.3,0.1112]
[1756338620949,0.021,4510.8,4510.3,0.1112]
[1756338621153,3.823,4510.8,4510.7,0.2852]
[1756338621563,3.823,4510.8,4510.6,0.1112]
[1756338621768,4.114,4510.8,4510.6,0.1112]
[1756338621978,3.823,4510.8,4510.6,0.1112]
[1756338622944,3.823,4510.8,4510.6,0.34403426]
[1756338623151,0.291,4510.7,4510.6,0.1112]
[1756338623383,3.0673508,4510.7,4509.9,0.1112]
[1756338623586,2.21709927,4510.4,4509.9,0.1112]
[1756338623794,3.802,4510.3,4509.0,0.4697]
[1756338623947,0.4482,4510.2,4509.1,1.91946262]
[1756338624280,0.4482,4510.1,4509.1,1.91946262]
[1756338624488,2.66545472,4510.1,4509.2,2.21768808]
[1756338624699,2.21729855,4510.0,4509.1,1.91946262]
[1756338624872,3.802,4510.3,4509.1,1.91946262]
[1756338625183,3.802,4510.2,4509.4,2.21758992]
[1756338625368,3.802,4510.2,4509.2,1.76045645]
[1756338625569,2.66548719,4510.1,4509.2,1.76045645]
[1756338625773,0.4482,4510.1,4509.2,1.76045645]
[1756338626075,2.66545944,4510.1,4509.2,3.97814054]
[1756338626274,3.801,4510.0,4509.3,1.07801405]
[1756338626457,3.801,4510.0,4509.4,2.21758771]
[1756338626657,3.801,4510.0,4509.8,0.004]
[1756338628254,0.291,4509.9,4509.8,0.004]
[1756338628989,1.705,4510.4,4509.8,0.004]
[1756338629189,3.801,4510.1,4509.8,0.004]
[1756338629484,0.291,4509.9,4509.8,0.004]
[1756338629683,3.801,4510.1,4509.8,0.004]
[1756338631093,0.291,4509.9,4509.8,0.004]
[1756338631892,0.7392,4509.9,4509.8,0.004]
[1756338633101,2.95654406,4509.9,4509.8,0.004]
[1756338634798,3.06774406,4509.9,4509.8,0.004]
[1756338636508,6.86774406,4509.9,4509.8,0.004]
[1756338638507,1.705,4510.4,4509.8,0.2892]
[1756338638723,3.8,4510.6,4510.0,5.80192392]
[1756338639022,3.8,4510.6,4510.5,5.80192392]
[1756338639205,3.8,4510.6,4510.5,6.08712392]
[1756338640014,3.8,4510.6,4510.5,8.30417302]
[1756338640177,3.821,4510.8,4510.5,7.60895589]
[1756338640506,3.821,4510.8,4510.7,2.2169508]
[1756338640708,3.821,4510.8,4510.6,2.2169845]
[1756338641078,0.021,4510.8,4510.6,2.2169845]
[1756338641303,3.821,4510.8,4510.7,0.2852]
[1756338641520,4.112,4510.8,4509.9,2.21731051]
[1756338641699,4.112,4510.8,4510.1,1.49051133]
[1756338641897,3.821,4510.8,4510.3,2.21714741]
[1756338642099,3.821,4510.8,4510.6,2.21695558]
[1756338642299,3.821,4510.8,4510.7,0.2852]
[1756338643296,3.82,4510.8,4510.7,0.2852]
[1756338643482,0.021,4510.8,4510.7,0.2852]
[1756338643677,3.82,4510.8,4510.7,0.2852]
[1756338645513,3.82,4510.8,4510.7,0.53542457]
[1756338645917,4.111,4510.8,4510.1,1.49051133]
[1756338646213,4.111,4510.8,4509.9,2.21734406]
[1756338646389,4.111,4510.8,4509.4,6.799]
[1756338646594,2.66518104,4510.7,4509.9,2.21733435]
[1756338646818,2.66518104,4510.7,4509.7,3.0]
[1756338646819,0.3007,4510.0,4509.8,2.22137461]
[1756338647014,0.3007,4510.0,4509.9,0.74388523]
[1756338647204,4.5494,4510.0,4509.8,0.004]
[1756338647580,0.4497,4509.9,4509.8,0.004]
[1756338647913,2.66704406,4509.9,4509.8,0.004]
[1756338648113,2.96774406,4509.9,4509.8,0.004]
[1756338648480,3.07894406,4509.9,4509.8,0.004]
[1756338648685,4.15896377,4509.9,4509.8,0.004]
[1756338649113,7.15896377,4509.9,4509.8,0.004]
[1756338649817,7.95096377,4509.9,4509.8,0.004]
[1756338650411,2.21758992,4509.4,4509.3,0.004]
[1756338650724,9.91978992,4509.4,4509.3,1e-08]
[1756338650924,11.78134672,4509.4,4509.3,1e-08]
[1756338651223,12.23104672,4509.4,4509.3,1e-08]
[1756338651583,12.23104672,4509.4,4508.8,1e-08]
[1756338651584,6.0096391,4509.3,4508.8,1e-08]
[1756338651819,0.9032,4508.9,4508.8,1e-08]
[1756338652124,9.7079,4508.9,4508.8,1e-08]
[1756338652324,10.8007643,4508.9,4508.8,1e-08]
[1756338652499,13.36578127,4508.9,4508.8,1e-08]
[1756338652826,13.47704868,4508.9,4508.8,1e-08]
[1756338654326,20.62704868,4508.9,4508.8,1e-08]
[1756338657427,16.82804868,4508.9,4508.8,1e-08]
[1756338657608,20.62704868,4508.9,4508.8,1e-08]
[1756338658821,16.82804868,4508.9,4508.8,1e-08]
[1756338659199,20.62704868,4508.9,4508.8,1e-08]
[1756338659401,15.81358127,4508.9,4508.8,1e-08]
[1756338659602,19.61258127,4508.9,4508.8,1e-08]
[1756338660133,20.40458127,4508.9,4508.8,1e-08]
[1756338660340,19.61258127,4508.9,4508.8,1e-08]
[1756338660638,19.16288127,4508.9,4508.8,1e-08]
[1756338660936,15.36388127,4508.9,4508.8,1e-08]
[1756338661157,11.42001697,4508.9,4508.8,0.31490001]
[1756338661302,5.85118114,4508.9,4508.8,0.76970001]
[1756338664207,1.706,4509.7,4508.8,0.76970001]
[1756338664408,3.799,4509.6,4509.0,2.21774518]
[1756338664614,3.799,4509.6,4508.8,0.31490001]
[1756338664615,6.01649157,4509.6,4509.5,0.3149]
[1756338664837,3.799,4509.6,4509.5,0.3149]
[1756338665041,1.706,4509.7,4509.5,0.7697]
[1756338665208,3.799,4509.6,4509.5,0.7697]
[1756338665409,3.799,4509.6,4509.5,0.3149]
[1756338665907,3.92348834,4509.7,4509.5,0.3149]
[1756338666230,1.706,4509.7,4509.5,0.3149]
[1756338666410,3.798,4509.6,4509.5,0.3149]
[1756338667233,2.21763656,4509.4,4508.8,1e-08]
[1756338667537,3.798,4509.3,4508.8,1e-08]
[1756338667725,6.0156818,4509.3,4508.8,1e-08]
[1756338667947,2.99165004,4509.6,4509.2,0.3149]
[1756338667948,2.21754001,4509.6,4509.2,0.3149]
[1756338668160,1.706,4509.7,4509.2,0.3149]
[1756338668161,6.01554512,4509.5,4509.2,0.7697]
[1756338668536,3.798,4509.5,4509.2,0.7697]
[1756338668741,3.798,4509.4,4508.9,2.21778922]
[1756338668929,1.706,4509.7,4509.3,0.3149]
[1756338669130,3.798,4509.6,4509.3,0.3149]
[1756338669431,3.92344619,4509.7,4509.3,0.3149]
[1756338669432,1.706,4509.7,4509.4,0.4548]
[1756338669632,3.798,4509.6,4509.0,2.21774464]
[1756338669857,3.798,4509.6,4509.5,0.7697]
[1756338670467,3.9092,4509.6,4509.5,0.7697]
[1756338670643,6.12669157,4509.6,4509.5,0.7697]
[1756338670846,3.9092,4509.6,4509.5,0.7697]
[1756338671531,3.9092,4509.6,4509.5,0.3149]
[1756338672170,6.12669157,4509.6,4509.5,0.3149]
[1756338672374,3.9092,4509.6,4509.5,0.3149]
[1756338672677,3.9092,4509.6,4509.5,0.7697]
[1756338672678,3.798,4509.6,4509.5,0.7697]
[1756338672887,0.1112,4509.6,4509.5,2.98724074]
[1756338673047,1.706,4510.5,4509.5,2.98724074]
[1756338673048,3.042,4510.2,4509.6,3.0]
[1756338673230,3.042,4510.1,4510.0,2.21728373]
[1756338673436,3.797,4510.1,4510.0,5.53218373]
[1756338673736,3.797,4510.1,4510.0,5.98698373]
[1756338673967,3.797,4510.1,4510.0,6.8074212]
[1756338675563,3.797,4510.1,4510.0,4.59013747]
[1756338675757,3.797,4510.1,4510.0,3.7697]
[1756338676264,3.797,4510.1,4510.0,5.9869949]
[1756338676841,3.798,4510.1,4510.0,5.9869949]
[1756338677740,0.001,4510.1,4510.0,5.9869949]
[1756338678997,0.001,4510.6,4510.5,3.0090491]
[1756338679280,0.021,4511.8,4511.0,3.00880336]
[1756338679465,0.021,4511.8,4511.7,2.21645942]
[1756338679942,0.021,4511.8,4511.7,5.94155942]
[1756338680142,0.021,4511.8,4511.7,7.05736867]
[1756338681070,0.021,4511.8,4511.7,7.84936867]
[1756338682339,0.021,4511.8,4511.7,11.64436867]
[1756338683488,0.021,4511.8,4511.7,11.75556867]
[1756338684152,1.8164,4513.0,4512.6,2.21599523]
[1756338684447,0.001,4513.4,4512.8,2.21591058]
[1756338684658,0.1104,4513.2,4512.8,2.21591058]
[1756338684948,0.1104,4513.2,4512.6,0.85441385]
[1756338685873,2.51616826,4512.7,4511.5,4.2337]
[1756338686077,0.1104,4512.7,4512.1,2.32745893]
[1756338686379,0.1104,4512.7,4512.6,0.2854]
[1756338686781,0.1104,4513.1,4512.6,0.7251]
[1756338686950,0.3002,4512.7,4512.4,0.1112]
[1756338687276,0.3002,4512.7,4512.1,0.1112]
[1756338687277,0.8595,4512.7,4512.1,0.1112]
[1756338687776,0.4106,4512.7,4512.1,0.1112]
[1756338688175,0.4106,4512.7,4512.2,2.21621187]
[1756338688376,0.4106,4512.7,4512.2,2.21621382]
[1756338688751,0.4106,4512.7,4512.1,0.1112]
[1756338691084,0.1104,4512.7,4512.1,0.1112]
[1756338691293,0.1104,4513.0,4512.6,0.2854]
[1756338692080,0.1104,4513.0,4512.4,0.1112]
[1756338692461,2.32622148,4513.0,4512.4,0.1112]
[1756338692662,0.1104,4513.0,4512.4,0.1112]
[1756338693471,0.1104,4513.0,4512.5,2.21602407]
[1756338693999,0.5593,4513.0,4512.4,0.1112]
[1756338694154,2.32625148,4513.0,4512.4,0.1112]
[1756338694865,0.001,4512.7,4512.4,0.1112]
[1756338695591,0.001,4512.7,4512.6,2.50141737]
[1756338695886,0.001,4512.7,4512.6,0.2854]
[1756338696091,0.001,4512.7,4512.6,3.02826635]
[1756338696293,0.001,4512.7,4512.6,6.05231737]
[1756338696591,0.001,4512.7,4512.6,6.84431737]
[1756338700509,0.001,4513.2,4513.1,3.00777186]
[1756338700706,0.001,4513.2,4513.1,9.90917186]
[1756338700872,0.001,4513.2,4513.1,11.84677342]
[1756338701806,0.001,4513.2,4513.1,11.93557742]
[1756338703110,0.001,4513.7,4513.5,0.792]
[1756338703301,0.001,4513.7,4513.6,9.82068166]
[1756338703606,0.001,4513.7,4513.6,10.6340264]
[1756338703809,0.001,4513.7,4513.6,12.77728158]
[1756338704175,0.001,4513.7,4513.6,7.75458158]
[1756338704375,0.001,4513.7,4513.6,9.1159264]
[1756338704984,0.001,4513.7,4513.6,9.56922095]
[1756338705389,0.001,4513.7,4513.6,10.00892095]
[1756338706114,0.001,4513.7,4513.6,9.28382095]
[1756338706701,0.001,4513.7,4513.6,9.37261995]
[1756338708612,0.001,4513.7,4513.6,9.68251995]
[1756338708813,0.001,4513.7,4513.6,10.87233259]
[1756338709215,0.7556,4513.7,4513.6,9.1149264]
[1756338709417,0.7556,4513.7,4513.6,6.8994]
[1756338709616,0.7556,4513.7,4513.4,3.1104]
[1756338709819,0.467,4513.6,4513.2,3.0]
[1756338709998,0.2876,4513.3,4513.2,3.0]
[1756338710199,0.7546,4513.3,4513.2,3.0]
[1756338710444,0.2876,4513.3,4513.2,5.21572276]
[1756338710603,0.2876,4513.3,4513.2,3.0]
[1756338710998,0.7546,4513.3,4513.2,3.0]
[1756338711198,0.7546,4513.3,4513.2,5.21572276]
[1756338711528,0.7546,4513.3,4512.9,4.08364162]
[1756338711529,0.7546,4513.3,4513.0,3.789]
[1756338711739,0.467,4513.2,4513.1,5.21575202]
[1756338711906,0.467,4513.5,4513.2,2.21568482]
[1756338712104,0.001,4513.7,4513.3,2.21563061]
[1756338712414,0.001,4513.7,4513.3,6.00863061]
[1756338712600,0.001,4513.7,4513.3,3.793]
[1756338712794,0.2876,4513.4,4513.3,0.004]
[1756338713227,0.7546,4513.4,4513.3,2.21967367]
[1756338713398,0.001,4513.7,4513.3,2.21967367]
[1756338714021,0.2876,4513.4,4513.3,2.21967367]
[1756338714411,0.2876,4513.4,4513.3,0.004]
[1756338714608,0.2876,4513.4,4513.3,2.21967367]
[1756338715535,0.7546,4513.4,4513.3,0.004]
[1756338715902,0.2876,4513.4,4513.3,0.004]
[1756338716217,0.001,4513.7,4513.4,2.21559366]
[1756338716421,0.001,4513.7,4513.4,2.21562458]
[1756338717198,0.001,4513.7,4513.3,2.21966383]
[1756338718533,0.001,4513.7,4513.4,3.788]
[1756338718734,0.2876,4513.4,4513.3,3.792]
[1756338718938,0.2876,4513.4,4513.3,0.004]
[1756338719240,0.001,4513.7,4513.3,2.52956542]
[1756338719532,0.2876,4513.4,4513.3,0.004]
[1756338719925,2.97022458,4513.4,4513.3,0.004]
[1756338720131,3.97810244,4513.4,4513.3,0.004]
[1756338722442,0.398,4513.4,4513.3,0.004]
[1756338723113,0.865,4513.4,4513.3,0.004]
[1756338724580,0.398,4513.4,4513.3,0.004]
[1756338726880,0.001,4513.7,4513.4,3.0]
[1756338727088,0.001,4513.7,4513.6,2.5254264]
[1756338727387,0.001,4513.7,4513.6,3.46473116]
[1756338727684,0.001,4513.7,4513.6,6.89833116]
[1756338728253,0.001,4513.7,4513.6,7.69033116]
[1756338730572,0.001,4513.7,4513.6,9.94183116]
[1756338730765,0.001,4513.7,4513.6,0.1104]
[1756338730766,0.2886,4513.7,4513.6,0.1104]
[1756338730991,0.2886,4513.7,4513.3,0.004]
[1756338730992,0.866,4513.7,4513.3,0.004]
[1756338731188,2.21562458,4513.4,4513.3,0.004]
[1756338731400,2.62314704,4513.4,4513.3,0.004]
[1756338731584,3.37774704,4513.4,4513.3,0.004]
[1756338732288,0.398,4513.4,4513.3,0.004]
[1756338733097,3.08062458,4513.4,4513.3,0.004]
[1756338733402,6.86662458,4513.4,4513.3,0.004]
[1756338734306,6.39962458,4513.4,4513.3,0.004]
[1756338734607,6.86662458,4513.4,4513.3,0.004]
[1756338735399,2.61362458,4513.4,4513.3,0.004]
[1756338735776,3.94224069,4513.4,4513.3,0.004]
[1756338738511,4.73424069,4513.4,4513.3,0.004]
[1756338739003,3.94224069,4513.4,4513.3,0.004]
[1756338739378,7.70974069,4513.4,4513.3,0.004]
[1756338739598,6.84812458,4513.4,4513.3,0.004]
[1756338740378,6.39962458,4513.4,4513.3,0.004]
[1756338740580,6.84812458,4513.4,4513.3,0.004]
[1756338741703,2.61362458,4513.4,4513.3,0.004]
[1756338741895,6.39962458,4513.4,4513.3,0.004]
[1756338742095,7.30609069,4513.4,4513.3,0.004]
[1756338742281,3.52009069,4513.4,4513.3,0.004]
[1756338742610,7.75459069,4513.4,4513.3,0.004]
[1756338743118,3.52009069,4513.4,4513.3,0.004]
[1756338743321,6.11202458,4513.4,4513.3,0.004]
[1756338743502,6.41422458,4513.4,4513.3,0.004]
[1756338745802,6.11202458,4513.4,4513.3,0.004]
[1756338746009,6.41422458,4513.4,4513.3,0.004]
[1756338746529,6.41522458,4513.4,4513.3,0.004]
[1756338747222,2.32702458,4513.4,4513.3,0.004]
[1756338747395,6.41522458,4513.4,4513.3,0.004]
[1756338748107,6.11302458,4513.4,4513.3,0.004]
[1756338748923,2.21662458,4513.4,4513.3,0.3185]
[1756338749239,6.11302458,4513.4,4513.3,0.3185]
[1756338750024,7.24818069,4513.4,4513.3,0.004]
[1756338750325,7.69668069,4513.4,4513.3,0.004]
[1756338750740,7.24818069,4513.4,4513.3,0.004]
[1756338750944,3.46218069,4513.4,4513.3,0.004]
[1756338751110,7.24718069,4513.4,4513.3,0.004]
[1756338752034,6.94498069,4513.4,4513.3,0.004]
[1756338752234,2.32702458,4513.4,4513.3,0.004]
[1756338752422,6.11202458,4513.4,4513.3,0.3185]
[1756338752820,2.32702458,4513.4,4513.3,0.3185]
[1756338753025,3.8964,4513.4,4513.3,0.7797]
[1756338753842,6.11202458,4513.4,4513.3,0.7797]
[1756338754208,6.11202458,4513.4,4513.3,0.3185]
[1756338755926,0.1114,4513.4,4513.3,0.7797]
[1756338756237,3.8964,4513.4,4513.3,0.7797]
[1756338756807,2.32702458,4513.4,4513.3,0.7797]
[1756338757140,6.11202458,4513.4,4513.3,0.3185]
[1756338758441,2.32702458,4513.4,4513.3,0.3185]
[1756338758744,6.11102458,4513.4,4513.3,0.3185]
[1756338758924,2.32702458,4513.4,4513.3,0.3185]
[1756338759109,3.8954,4513.4,4513.3,0.3185]
[1756338759309,0.001,4513.4,4513.3,0.7797]
[1756338759509,3.785,4513.4,4513.3,0.7797]
[1756338760215,0.001,4513.4,4513.3,0.7797]
[1756338760437,3.785,4513.4,4513.3,1.445839]
[1756338763346,0.001,4513.4,4513.3,1.445839]
[1756338763644,3.785,4513.4,4513.3,0.984639]
[1756338766636,6.00062458,4513.4,4513.3,0.984639]
[1756338769726,5.99962458,4513.4,4513.3,0.984639]
[1756338770853,3.784,4513.4,4513.3,0.984639]
[1756338771624,5.99962458,4513.4,4513.3,0.984639]
[1756338772035,5.99962458,4513.4,4513.3,0.670139]
[1756338772952,5.99862458,4513.4,4513.3,0.956839]
[1756338773154,5.99862458,4513.4,4513.3,1.402539]
[1756338773355,5.99862458,4513.4,4513.3,0.670139]
[1756338774455,5.99862458,4513.4,4513.3,0.956839]
[1756338775766,7.12928046,4513.4,4513.3,0.670139]
[1756338775940,7.12928046,4513.4,4512.9,0.004]
[1756338775941,2.21582096,4513.0,4512.9,0.004]
[1756338776146,5.99782096,4513.0,4512.9,0.004]
[1756338776339,2.51392096,4513.0,4512.9,0.004]
[1756338776534,6.29592096,4513.0,4512.9,0.004]
[1756338776736,2.51392096,4513.0,4512.9,0.004]
[1756338776937,5.99782096,4513.0,4512.9,0.004]
[1756338777324,7.11727631,4513.0,4512.9,0.004]
[1756338777559,7.56577631,4513.0,4512.9,0.004]
[1756338779859,7.91260382,4513.0,4512.9,0.004]
[1756338783177,7.46410382,4513.0,4512.9,0.004]
[1756338783569,6.34464847,4513.0,4512.9,0.2907]
[1756338783880,6.34464847,4513.0,4512.9,0.7364]
[1756338784253,2.56264847,4513.0,4512.9,0.7364]
[1756338784448,6.34464847,4513.0,4512.9,0.7364]
[1756338784666,2.56264847,4513.0,4512.9,0.7364]
[1756338784973,6.34464847,4513.0,4512.9,0.7364]
[1756338785983,6.45504847,4513.0,4512.9,0.7364]
[1756338786671,6.10822096,4513.0,4512.9,0.7364]
[1756338788197,6.40632096,4513.0,4512.9,0.004]
[1756338788347,7.68721121,4513.0,4512.9,0.004]
[1756338788550,7.68721121,4513.0,4512.9,0.2907]
[1756338788551,3.15861121,4513.0,4512.9,0.2907]
[1756338788748,0.1104,4513.0,4512.9,0.7364]
[1756338788949,6.10722096,4513.0,4512.9,0.7364]
[1756338789793,6.10722096,4513.0,4512.9,0.2907]
[1756338790101,6.10722096,4513.0,4512.9,0.004]
[1756338790307,3.8914,4513.0,4512.9,0.2907]
[1756338790481,6.10722096,4513.0,4512.9,0.2907]
[1756338790693,2.32622096,4513.0,4512.9,0.2907]
[1756338790857,6.10722096,4513.0,4512.9,0.2907]
[1756338791195,6.10722096,4513.0,4512.9,0.004]
[1756338791395,3.8914,4513.0,4512.9,0.2907]
[1756338791699,6.10722096,4513.0,4512.9,0.2907]
[1756338791856,6.40532096,4513.0,4512.9,0.004]
[1756338793106,3.8914,4513.0,4512.9,0.2907]
[1756338793291,6.10722096,4513.0,4512.9,0.2907]
[1756338793766,6.10722096,4513.0,4512.9,0.004]
[1756338793963,7.23761805,4513.0,4512.9,0.004]
[1756338794169,7.68611805,4513.0,4512.9,0.004]
[1756338794894,7.23761805,4513.0,4512.9,0.004]
[1756338795985,7.68611805,4513.0,4512.9,0.004]
[1756338800465,8.04757794,4513.0,4512.9,1e-08]
[1756338800809,8.04757794,4513.0,4512.8,1e-08]
[1756338800810,6.00787006,4512.9,4512.8,1e-08]
[1756338801105,14.81016046,4512.9,4512.8,1e-08]
[1756338801311,2.21606648,4512.5,4512.4,1e-08]
[1756338801469,6.00811559,4512.4,4512.3,1e-08]
[1756338801666,7.04591482,4512.4,4512.3,1e-08]
[1756338801866,7.47321482,4512.4,4512.3,1e-08]
[1756338802070,7.17671482,4512.4,4512.3,0.29990001]
[1756338802288,7.17671482,4512.4,4512.3,1e-08]
[1756338802289,3.69321482,4512.4,4512.3,1e-08]
[1756338802570,6.86771559,4512.4,4512.3,1e-08]
[1756338803111,6.40381559,4512.4,4512.3,1e-08]
[1756338803323,2.62381559,4512.4,4512.3,1e-08]
[1756338803631,6.10731559,4512.4,4512.3,1e-08]
[1756338803800,6.40381559,4512.4,4512.3,1e-08]
[1756338804000,6.10731559,4512.4,4512.3,1e-08]
[1756338804201,2.32731559,4512.4,4512.3,0.29990001]
[1756338804403,6.10731559,4512.4,4512.3,0.29990001]
[1756338804600,0.1112,4512.4,4512.3,0.76570001]
[1756338804813,0.1112,4512.4,4512.3,0.29990001]
[1756338804814,6.10731559,4512.4,4512.3,0.29990001]
[1756338805411,3.8912,4512.4,4512.3,0.76570001]
[1756338805794,6.10731559,4512.4,4512.3,0.29990001]
[1756338806200,2.21601019,4512.7,4512.3,0.76570001]
[1756338806525,0.1112,4512.4,4512.3,0.29990001]
[1756338806689,3.8912,4512.4,4512.3,0.29990001]
[1756338806893,3.8912,4512.4,4512.3,0.76570001]
[1756338807298,6.10731559,4512.4,4512.3,0.29990001]
[1756338808723,6.10731559,4512.4,4512.3,1e-08]
[1756338808724,6.40381559,4512.4,4512.3,1e-08]
[1756338808929,7.23615068,4512.4,4512.3,1e-08]
[1756338810621,6.93965068,4512.4,4512.3,0.29990001]
[1756338810811,6.10731559,4512.4,4512.3,0.29990001]
[1756338812131,6.10731559,4512.4,4512.3,1e-08]
[1756338812443,6.40381559,4512.4,4512.3,1e-08]
[1756338813951,0.1112,4512.4,4512.3,0.29990001]
[1756338814095,3.8912,4512.4,4512.3,0.76570001]
[1756338817130,7.47843461,4512.4,4512.3,1e-08]
[1756338818425,7.01453461,4512.4,4512.3,1e-08]
[1756338818620,7.01353461,4512.4,4512.3,1e-08]
[1756338819160,7.47743461,4512.4,4512.3,1e-08]
[1756338819456,3.8902,4512.4,4512.3,0.29990001]
[1756338819662,3.8902,4512.4,4512.3,0.76570001]
[1756338821830,3.8902,4512.4,4512.3,0.29990001]
[1756338822065,3.8902,4512.4,4512.3,0.76570001]
[1756338822982,6.40281559,4512.4,4512.3,1e-08]
[1756338823256,7.26469977,4512.4,4512.3,1e-08]
[1756338823463,3.48569977,4512.4,4512.3,1e-08]
[1756338823761,7.72859977,4512.4,4512.3,1e-08]
[1756338824657,7.26469977,4512.4,4512.3,1e-08]
[1756338824839,3.48569977,4512.4,4512.3,1e-08]
[1756338825041,6.96819977,4512.4,4512.3,1e-08]
[1756338826237,2.32731559,4512.4,4512.3,0.29990001]
[1756338826439,6.10631559,4512.4,4512.3,0.29990001]
[1756338827075,6.10631559,4512.4,4512.3,1e-08]
[1756338827750,6.41711559,4512.4,4512.3,1e-08]
[1756338828134,6.88261559,4512.4,4512.3,1e-08]
[1756338828340,7.79247977,4512.4,4512.3,1e-08]
[1756338830088,3.54797977,4512.4,4512.3,1e-08]
[1756338830243,7.79247977,4512.4,4512.3,1e-08]
[1756338832950,7.32597977,4512.4,4512.3,1e-08]
[1756338833355,0.1112,4512.4,4512.3,0.30640001]
[1756338833560,3.8892,4512.4,4512.3,0.77070001]
[1756338836483,6.10531559,4512.4,4512.3,1e-08]
[1756338836685,3.8892,4512.4,4512.3,1e-08]
[1756338836850,3.8892,4512.4,4512.3,0.30640001]
[1756338837176,3.8892,4512.4,4512.3,0.77070001]
[1756338837684,6.10531559,4512.4,4512.3,1e-08]
[1756338837848,7.02663806,4512.4,4512.3,1e-08]
[1756338838192,7.49213806,4512.4,4512.3,1e-08]
[1756338839486,7.02663806,4512.4,4512.3,1e-08]
[1756338840049,7.49213806,4512.4,4512.3,1e-08]
[1756338840400,0.792,4511.8,4510.8,0.02]
[1756338840577,2.338,4511.4,4510.0,0.004]
[1756338840759,5.52804573,4510.1,4510.0,0.004]
[1756338841089,8.0075672,4510.1,4510.0,0.004]
[1756338841258,11.7845672,4510.1,4510.0,0.004]
[1756338841599,12.2500672,4510.1,4510.0,0.004]